bitfinex-derivatives/quotes_BNBF0:USTF0_20250413
["timestamp","ask_amount","ask_price","bid_price","bid_amount"]
[1744508946944,0.30834666,596.6,596.09,0.612]
[1744508947644,0.29193774,596.59,596.09,0.612]
[1744508947841,0.30834666,596.58,596.09,0.612]
[1744508948245,0.30834666,596.58,596.1,0.621]
[1744508948442,0.30834666,596.58,596.1,1.225]
[1744508954343,0.30834666,596.58,596.11,0.97388467]
[1744508954845,0.30834666,596.58,596.1,1.225]
[1744508955650,0.30834666,596.57,596.1,1.225]
[1744508955852,0.30834666,596.71,596.11,0.97357771]
[1744508956152,0.30834666,596.7,596.11,0.97357771]
[1744508956352,0.30834666,596.86,596.11,0.97357771]
[1744508956651,0.2918496,596.72,596.11,0.97357771]
[1744508956951,0.30834666,596.71,596.12,0.97357771]
[1744508957151,0.30834666,596.86,596.12,0.97357771]
[1744508957349,0.30834666,596.85,596.12,0.97357771]
[1744508957648,0.30834666,596.84,596.12,0.97357771]
[1744508957854,0.29184837,596.84,596.1,1.225]
[1744508958154,0.30834666,596.83,596.11,0.511]
[1744508960951,0.29184837,596.84,596.11,0.511]
[1744508961158,0.30824295,596.83,596.11,0.511]
[1744508962459,0.29184837,596.84,596.11,0.511]
[1744508962654,0.30824203,596.83,596.11,0.511]
[1744508964858,0.30824203,596.82,596.11,0.511]
[1744508965059,0.30824203,597.03,596.12,0.97234554]
[1744508965254,0.30824203,597.02,596.12,0.97234554]
[1744508965458,0.30824203,597.01,596.11,0.511]
[1744508965656,0.60007694,597.01,596.11,0.511]
[1744508965958,0.30824203,597.0,596.11,0.511]
[1744508966159,0.30824203,596.99,596.11,0.511]
[1744508966357,0.30824203,596.98,596.11,0.511]
[1744508966560,0.30824203,596.97,596.11,0.511]
[1744508966760,0.30824203,596.96,596.11,0.511]
[1744508966958,0.30824203,596.95,596.11,0.511]
[1744508967262,0.30824203,596.94,596.11,0.511]
[1744508967463,0.30824203,596.93,596.11,0.511]
[1744508967758,0.30824203,596.92,596.11,0.511]
[1744508967962,0.30824203,596.91,596.11,0.511]
[1744508968163,0.30824203,596.9,596.11,0.511]
[1744508968362,0.30824203,597.08,596.11,0.511]
[1744508968560,0.64321112,597.07,596.12,0.682]
[1744508968765,0.29183124,596.89,596.12,0.682]
[1744508968963,0.30824203,596.88,596.12,0.682]
[1744508969162,0.30824203,597.06,596.12,0.682]
[1744508969362,0.64322234,597.05,596.12,0.682]
[1744508969663,0.30824203,597.04,596.13,0.572]
[1744508969961,0.30824203,597.03,596.13,0.572]
[1744508970161,0.30824203,597.02,596.13,0.572]
[1744508970462,0.30821649,597.01,596.13,0.572]
[1744508970666,0.30821649,597.02,596.14,0.97168893]
[1744508970867,0.30821649,597.01,596.14,0.97168893]
[1744508971067,0.30821649,597.02,596.14,0.97168893]
[1744508971269,0.30821649,597.01,596.13,0.572]
[1744508971468,0.30821649,597.0,596.13,0.572]
[1744508971663,0.30821649,597.02,596.13,0.572]
[1744508971968,0.30821649,597.01,596.14,0.97158878]
[1744508972268,0.30821649,597.0,596.13,0.572]
[1744508972468,0.30821649,597.02,596.13,0.572]
[1744508972767,0.30821649,597.01,596.13,0.572]
[1744508972969,0.30821649,597.0,596.14,0.479]
[1744508973171,0.30821649,597.02,596.14,0.479]
[1744508973472,0.30822871,597.01,596.14,0.479]
[1744508973673,0.30822871,597.04,596.14,0.479]
[1744508974667,0.29182757,597.03,596.15,0.584]
[1744508974869,0.30822871,597.02,596.15,0.584]
[1744508975068,0.29182757,597.03,596.15,0.584]
[1744508975275,0.30823438,597.02,596.15,0.584]
[1744508976673,0.30823438,597.01,596.15,0.584]
[1744508976874,0.30823438,597.04,596.15,0.584]
[1744508977072,0.30823438,597.03,596.15,0.584]
[1744508977272,0.30823438,597.04,596.15,0.584]
[1744508977474,0.30823438,597.03,596.15,1.215]
[1744508977675,0.6000595,597.02,596.15,1.215]
[1744508977875,0.30823438,597.01,596.15,1.215]
[1744508978074,0.30823438,597.0,596.15,1.215]
[1744508978277,0.29182512,597.02,596.15,1.215]
[1744508978477,0.30827353,597.01,596.15,1.215]
[1744508978773,0.6432819,597.0,596.15,1.215]
[1744508978973,0.64328751,596.99,596.15,1.215]
[1744508979174,0.64329312,596.98,596.15,1.215]
[1744508979373,0.30827353,596.97,596.15,1.215]
[1744508979975,0.3082744,596.96,596.15,1.215]
[1744508980280,0.3082744,596.95,596.15,1.215]
[1744508980579,0.33501959,596.98,596.15,1.215]
[1744508980580,0.3082744,596.97,596.15,1.215]
[1744508980781,0.3082744,596.96,596.15,1.215]
[1744508980980,0.33501959,596.98,596.15,1.215]
[1744508980981,0.3082744,596.97,596.15,1.215]
[1744508981581,0.33501959,596.98,596.15,1.215]
[1744508981782,0.30827562,596.97,596.15,1.215]
[1744508982383,0.30827562,596.96,596.15,1.215]
[1744508982576,0.30827562,596.97,596.15,1.215]
[1744508982782,0.29185572,596.95,596.15,1.215]
[1744508983082,0.30827562,596.94,596.15,1.215]
[1744508983382,0.30827562,596.93,596.15,1.215]
[1744508983584,0.30827562,596.92,596.15,1.215]
[1744508983779,0.30827562,596.91,596.15,1.215]
[1744508983985,0.30827562,596.9,596.15,1.215]
[1744508984283,0.30827562,596.89,596.15,1.215]
[1744508984483,0.30827562,596.88,596.15,1.215]
[1744508984683,0.30827562,596.87,596.15,1.215]
[1744508984879,0.30827562,596.86,596.15,1.215]
[1744508985186,0.30827562,596.85,596.15,1.215]
[1744508985383,0.30827562,596.84,596.15,1.215]
[1744508985683,0.30827562,596.83,596.15,1.215]
[1744508985881,0.30827562,596.89,596.15,1.215]
[1744508986077,0.30827562,596.88,596.15,1.215]
[1744508986284,0.30827562,596.87,596.15,1.215]
[1744508986482,0.30826497,596.86,596.15,1.215]
[1744508986681,0.29185082,596.86,596.15,1.215]
[1744508986884,0.30826497,596.85,596.15,1.215]
[1744508987785,0.30826497,596.84,596.15,1.215]
[1744508987984,0.30826497,596.83,596.15,1.215]
[1744508988184,0.30826497,596.82,596.15,1.215]
[1744508988382,0.30826497,596.81,596.15,1.215]
[1744508988581,0.30826497,596.88,596.15,1.215]
[1744508988787,0.29185572,596.81,596.15,1.215]
[1744508988982,0.30826497,596.8,596.15,1.92]
[1744508989383,1.27338355,596.83,596.15,1.92]
[1744508989587,0.30826497,596.82,596.15,2.678]
[1744508990389,0.29185939,596.81,596.15,2.678]
[1744508990590,0.30826497,596.8,596.15,2.678]
[1744508991587,0.30826497,596.82,596.15,2.678]
[1744508991891,0.29186184,596.79,596.15,2.678]
[1744508992190,0.30826497,596.78,596.15,2.678]
[1744508993391,0.30826497,596.78,596.15,3.403]
[1744508993793,0.29186184,596.79,596.15,3.403]
[1744508993990,0.30825045,596.78,596.15,3.403]
[1744508994594,0.30825045,596.82,596.15,3.403]
[1744508994789,0.29185939,596.77,596.15,4.202]
[1744508994988,0.30825045,596.76,596.15,4.202]
[1744508995994,0.29185939,596.77,596.15,4.202]
[1744508996188,0.30825045,596.76,596.15,4.202]
[1744508997694,0.30825045,596.75,596.15,4.202]
[1744508997894,0.29186673,596.75,596.15,4.202]
[1744508998088,0.30825045,596.74,596.15,4.202]
[1744508999293,0.30824387,596.73,596.15,4.202]
[1744508999592,0.30824387,596.72,596.15,4.202]
[1744508999793,0.30824387,596.74,596.15,4.202]
[1744508999997,0.30824329,596.73,596.15,4.202]
[1744509000194,0.30824329,596.74,596.15,4.202]
[1744509000496,0.30824329,596.74,596.16,0.97293487]
[1744509000697,0.29186673,596.75,596.16,0.97293487]
[1744509000896,0.30821782,596.74,596.16,0.97293487]
[1744509001097,0.30821782,596.74,596.17,0.97293487]
[1744509001699,0.30821782,596.74,596.18,0.97293487]
[1744509002400,0.30821782,596.74,596.16,0.97293487]
[1744509002900,0.30821782,596.74,596.15,3.444]
[1744509003399,1.27338355,596.83,596.15,3.444]
[1744509003600,0.30823125,596.82,596.15,3.444]
[1744509003803,0.60008574,596.82,596.15,3.444]
[1744509004104,0.30823125,596.81,596.15,3.444]
[1744509005398,0.30823125,596.81,596.15,4.122]
[1744509006803,0.30824915,596.8,596.15,4.122]
[1744509007104,0.30824915,596.81,596.15,4.122]
[1744509007303,0.30824915,596.8,596.15,4.122]
[1744509007504,0.30824915,596.81,596.15,4.122]
[1744509007703,0.30824915,596.8,596.15,4.122]
[1744509007905,0.30824915,596.81,596.15,4.122]
[1744509008604,0.30824915,596.81,596.16,0.9744133]
[1744509009300,0.30824915,596.81,596.17,0.9744133]
[1744509009702,0.30824915,596.89,596.18,0.9744133]
[1744509009906,1.27338355,596.9,596.18,0.9744133]
[1744509010203,0.30823538,596.89,596.15,0.678]
[1744509010703,0.29188509,596.88,596.15,0.678]
[1744509010908,0.30823538,596.87,596.15,0.678]
[1744509011308,0.30823538,596.87,596.15,1.31]
[1744509011808,0.30823538,596.87,596.15,1.915]
[1744509012108,0.30823538,596.87,596.15,2.654]
[1744509012608,0.30823538,596.89,596.15,3.289]
[1744509012905,0.30823538,596.88,596.15,3.289]
[1744509013103,0.30823538,596.89,596.15,3.942]
[1744509013306,0.30823538,596.88,596.15,3.942]
[1744509013504,0.30823538,596.87,596.15,3.942]
[1744509013704,0.29186795,596.88,596.15,3.942]
[1744509013905,0.30823538,596.87,596.15,3.942]
[1744509015611,0.30823538,596.97,596.15,3.942]
[1744509015911,0.6432662,596.96,596.15,3.942]
[1744509016112,0.30823538,596.95,596.15,3.942]
[1744509016314,0.64327742,596.94,596.15,3.942]
[1744509016514,0.64328304,596.93,596.15,3.942]
[1744509016813,0.64328865,596.92,596.15,3.942]
[1744509017109,0.64329426,596.91,596.15,3.942]
[1744509017307,0.64329987,596.9,596.15,3.942]
[1744509017508,0.64330549,596.89,596.15,3.942]
[1744509017812,0.33507572,596.88,596.15,3.942]
[1744509018013,0.64337963,596.88,596.15,3.942]
[1744509018211,0.30830391,596.87,596.15,3.942]
[1744509018412,0.30830391,596.86,596.15,3.942]
[1744509018711,0.30830391,596.85,596.15,3.942]
[1744509018913,0.30830391,596.84,596.15,3.942]
[1744509019108,0.30830391,596.83,596.15,3.942]
[1744509019308,0.33507572,596.88,596.15,3.942]
[1744509019512,0.30831181,596.87,596.15,3.942]
[1744509019712,0.30831181,596.86,596.15,3.942]
[1744509019908,0.30831181,596.85,596.15,3.942]
[1744509020108,0.30831181,596.84,596.15,3.942]
[1744509020310,0.30831181,596.83,596.15,3.942]
[1744509020512,0.30831181,596.82,596.15,3.942]
[1744509020709,0.30831181,596.81,596.15,3.942]
[1744509021015,0.30831181,596.8,596.15,3.942]
[1744509021316,0.30831181,596.79,596.15,3.942]
[1744509021511,0.30831181,596.78,596.15,4.425]
[1744509021716,0.30831181,596.77,596.15,4.425]
[1744509022015,0.30831181,596.76,596.15,4.425]
[1744509022216,0.30831181,596.81,596.15,4.425]
[1744509022414,0.30831181,596.8,596.15,4.425]
[1744509022711,0.30831181,596.79,596.15,4.425]
[1744509022914,1.27338355,596.82,596.15,4.425]
[1744509022915,0.30831181,596.81,596.15,4.425]
[1744509024216,0.30830699,596.8,596.15,4.425]
[1744509024414,0.30830699,596.81,596.15,4.425]
[1744509024613,0.30830699,596.8,596.15,4.425]
[1744509024917,0.29189733,596.79,596.15,4.425]
[1744509025317,0.30830699,596.78,596.15,4.425]
[1744509027619,0.29190101,596.77,596.15,4.425]
[1744509028016,0.30830699,596.76,596.15,4.425]
[1744509028521,0.30830699,596.75,596.15,4.425]
[1744509028716,0.30830699,596.74,596.15,4.425]
[1744509028915,0.29190101,596.77,596.15,4.425]
[1744509029115,0.30839174,596.76,596.15,4.425]
[1744509029313,0.30839174,596.75,596.15,4.425]
[1744509029520,0.30839174,596.74,596.15,4.425]
[1744509029718,0.30839174,596.76,596.15,4.425]
[1744509029918,0.30839174,596.75,596.15,4.425]
[1744509030115,0.30839174,596.74,596.15,4.425]
[1744509030420,0.30839174,596.76,596.15,4.425]
[1744509030614,0.30844791,596.75,596.15,4.425]
[1744509030919,0.64360224,596.74,596.15,4.425]
[1744509031121,0.64360786,596.73,596.15,4.425]
[1744509031321,0.30844791,596.72,596.15,4.425]
[1744509031525,0.30844791,596.71,596.15,4.425]
[1744509031722,0.3351768,596.7,596.15,4.425]
[1744509031921,0.30844791,596.69,596.15,4.425]
[1744509032123,0.33518804,596.68,596.15,4.425]
[1744509032325,0.30844791,596.67,596.15,4.425]
[1744509032727,0.33519927,596.66,596.15,4.425]
[1744509032925,0.30844791,596.65,596.15,4.425]
[1744509033825,0.2919708,596.64,596.15,4.425]
[1744509034021,0.30844791,596.63,596.15,4.425]
[1744509035429,0.2919708,596.64,596.15,4.425]
[1744509035632,0.30842997,596.63,596.15,4.425]
[1744509039432,0.33522174,596.62,596.15,4.425]
[1744509039631,0.30842997,596.61,596.15,4.425]
[1744509040031,0.33523298,596.6,596.15,4.425]
[1744509040332,0.30847613,596.59,596.15,4.425]
[1744509040525,0.33524422,596.58,596.15,4.425]
[1744509040728,0.30847613,596.57,596.15,4.425]
[1744509041331,0.33525546,596.56,596.15,4.425]
[1744509041533,0.30847613,596.55,596.15,4.425]
[1744509041727,0.3352667,596.54,596.15,4.425]
[1744509041930,0.30852226,596.53,596.15,4.425]
[1744509042131,0.30852226,596.53,596.15,3.115]
[1744509042331,0.33527794,596.52,596.15,1.222]
[1744509042632,0.30852226,596.51,596.15,1.222]
[1744509042833,0.33528918,596.5,596.15,1.222]
[1744509043132,0.30852226,596.49,596.15,1.222]
[1744509043332,0.33530042,596.48,596.15,1.222]
[1744509043533,0.30852226,596.47,596.15,1.222]
[1744509043732,0.33531167,596.46,596.15,1.222]
[1744509043929,0.30852226,596.45,596.15,1.222]
[1744509044534,0.64383955,596.45,596.15,1.222]
[1744509044729,0.30852226,596.44,596.15,1.222]
[1744509045834,0.29204799,596.43,596.15,1.222]
[1744509046135,0.30852226,596.42,596.15,1.222]
[1744509048133,0.29204799,596.43,596.15,1.222]
[1744509048336,0.30848577,596.42,596.15,1.222]
[1744509048732,0.29202838,596.41,596.15,1.222]
[1744509049235,0.30848577,596.4,596.15,1.222]
[1744509049437,0.30848577,596.4,596.15,0.739]
[1744509050136,0.30848577,596.4,596.06,0.515]
[1744509051638,0.30848577,596.44,596.06,0.515]
[1744509052740,0.29203818,596.43,596.06,0.515]
[1744509052938,0.30848116,596.42,596.06,0.515]
[1744509054643,0.30848116,596.44,596.06,0.515]
[1744509054843,0.30848116,596.43,596.06,0.515]
[1744509055043,0.30848116,596.44,596.06,0.515]
[1744509055645,0.29203818,596.43,596.06,0.515]
[1744509055846,0.30848116,596.42,596.06,0.515]
[1744509056042,0.29203818,596.43,596.06,0.515]
[1744509056238,0.30848057,596.41,596.06,0.515]
[1744509056445,0.30848057,596.4,596.06,0.515]
[1744509056641,0.30848057,596.42,596.06,0.515]
[1744509057745,0.30848057,596.44,596.06,0.515]
[1744509058045,0.30848057,596.43,596.06,0.515]
[1744509058246,0.30848057,596.44,596.06,0.515]
[1744509058445,0.30848057,596.43,596.06,0.515]
[1744509058644,0.30848057,596.44,596.06,0.515]
[1744509058842,0.2920149,596.43,596.06,0.515]
[1744509059046,0.30848057,596.42,596.06,0.515]
[1744509060842,0.33531729,596.45,596.06,0.515]
[1744509060843,0.30841654,596.41,596.06,0.515]
[1744509061047,0.30841654,596.44,596.06,0.515]
[1744509061248,0.30841654,596.43,596.06,0.515]
[1744509061542,0.30841654,596.42,596.06,0.515]
[1744509061747,0.29199898,596.42,596.06,0.515]
[1744509061948,0.30841654,596.41,596.06,0.515]
[1744509063751,0.30841654,596.4,596.06,0.515]
[1744509064050,0.30841654,596.39,596.06,0.515]
[1744509064346,0.30841654,596.38,596.06,0.515]
[1744509064547,0.30841654,596.44,596.06,0.515]
[1744509064751,0.29198918,596.41,596.06,0.515]
[1744509065051,0.30841654,596.4,596.06,0.515]
[1744509066654,0.30841654,596.39,596.06,0.515]
[1744509066854,0.3084174,596.38,596.06,0.515]
[1744509067054,0.3084174,596.4,596.06,0.515]
[1744509067351,0.3084174,596.39,596.06,0.515]
[1744509067649,0.3084174,596.38,596.06,0.515]
[1744509067855,0.3084174,596.4,596.06,0.515]
[1744509068047,0.3084174,596.39,596.06,0.515]
[1744509068353,0.3084174,596.38,596.06,0.515]
[1744509068649,0.3084174,596.37,596.06,0.515]
[1744509068854,0.3084174,596.36,596.06,0.515]
[1744509069051,0.3084174,596.4,596.06,0.515]
[1744509069654,0.3084174,596.44,596.06,0.515]
[1744509069848,0.29199898,596.39,596.06,0.515]
[1744509070050,0.3084174,596.38,596.06,0.515]
[1744509071760,0.3084174,596.38,596.05,0.774]
[1744509072654,0.3084174,596.37,596.05,0.774]
[1744509072861,0.29200143,596.39,596.05,0.774]
[1744509073053,0.3084174,596.38,596.05,0.774]
[1744509074965,0.30842007,596.37,596.05,0.774]
[1744509075158,0.30842007,596.38,596.05,0.774]
[1744509075665,0.30842007,596.44,596.04,0.65]
[1744509076767,0.2919953,596.43,596.04,0.65]
[1744509076967,0.30842007,596.42,596.04,0.65]
[1744509078664,0.30842007,596.44,596.04,0.65]
[1744509079666,0.2919904,596.43,596.04,1.263]
[1744509079868,0.30840659,596.42,596.04,1.263]
[1744509081670,0.33531729,596.45,596.04,1.263]
[1744509081671,0.30840659,596.44,596.04,1.263]
[1744509081870,0.30840659,596.43,596.04,1.263]
[1744509082071,0.30840659,596.44,596.04,1.263]
[1744509082272,0.30840659,596.43,596.04,1.263]
[1744509082469,0.30840659,596.42,596.04,1.263]
[1744509082670,0.2919904,596.42,596.04,1.263]
[1744509083072,0.30842162,596.41,596.04,1.263]
[1744509084774,0.30842162,596.44,596.04,1.263]
[1744509084975,0.30842162,596.43,596.04,1.263]
[1744509085178,0.30842162,596.42,596.04,1.263]
[1744509085471,0.30842162,596.41,596.04,1.263]
[1744509085675,0.29201245,596.41,596.04,1.263]
[1744509085876,0.30842162,596.4,596.04,1.263]
[1744509086170,0.30845829,596.39,596.04,1.263]
[1744509086375,0.30845829,596.38,596.04,1.263]
[1744509086676,0.30845829,596.37,596.04,1.263]
[1744509086875,0.30845829,596.4,596.04,1.263]
[1744509087670,0.29201245,596.41,596.04,1.263]
[1744509087875,0.30853674,596.4,596.04,1.263]
[1744509088777,0.30853674,596.39,596.04,1.263]
[1744509089074,0.30853674,596.38,596.04,1.263]
[1744509089374,0.30853674,596.37,596.04,1.263]
[1744509089571,0.30853674,596.36,596.04,1.263]
[1744509089777,0.30853674,596.35,596.04,1.263]
[1744509090071,0.30853674,596.34,596.04,1.263]
[1744509090277,0.30853674,596.4,596.04,1.263]
[1744509090474,1.27338355,596.33,596.04,1.263]
[1744509090674,0.30853674,596.32,596.04,1.263]
[1744509091676,0.29208108,596.31,596.04,1.263]
[1744509091872,0.30853674,596.3,596.04,1.263]
[1744509092478,0.29208108,596.31,596.04,1.263]
[1744509092776,0.30854044,596.3,596.04,1.263]
[1744509093676,0.30854044,596.42,596.04,0.613]
[1744509093874,0.29210927,596.29,596.04,0.613]
[1744509094377,0.30854044,596.28,596.04,0.613]
[1744509094576,0.30854044,596.27,596.04,0.613]
[1744509094773,0.30854044,596.42,596.04,0.613]
[1744509094971,0.30854044,596.41,596.04,0.613]
[1744509095182,0.64388584,596.4,596.04,0.613]
[1744509095374,0.64389146,596.39,596.04,0.613]
[1744509095577,0.64389709,596.38,596.04,0.613]
[1744509095774,0.30854044,596.37,596.04,0.613]
[1744509095978,1.27338355,596.34,596.04,0.613]
[1744509096178,0.30854044,596.33,596.04,0.613]
[1744509097379,1.27338355,596.34,596.04,0.613]
[1744509097575,0.30855172,596.33,596.04,0.613]
[1744509098681,0.30855172,596.32,596.04,0.613]
[1744509098877,0.30855172,596.37,596.04,0.613]
[1744509099082,0.30855172,596.36,596.04,0.613]
[1744509099381,0.30855172,596.35,596.04,0.613]
[1744509099579,0.30855172,596.34,596.04,0.613]
[1744509099781,0.30855172,596.37,596.04,0.613]
[1744509100785,0.29207005,596.36,596.04,0.613]
[1744509100986,0.30855172,596.35,596.04,0.613]
[1744509101586,0.30855172,596.35,596.02,1.085]
[1744509101888,0.30855172,596.35,596.02,0.604]
[1744509102584,0.30855172,596.34,596.02,0.604]
[1744509102785,0.30855172,596.37,596.02,0.604]
[1744509102987,0.30855172,596.36,596.02,0.604]
[1744509103187,0.30855172,596.37,596.02,0.604]
[1744509103488,0.30855172,596.36,596.02,0.604]
[1744509103688,0.29205534,596.36,596.02,0.604]
[1744509103883,0.30855172,596.35,596.02,0.604]
[1744509105783,0.60060951,596.34,596.02,0.604]
[1744509105989,0.30855172,596.33,596.02,0.604]
[1744509108391,0.30855172,596.33,595.98,0.544]
[1744509108691,0.33535665,596.38,595.98,0.544]
[1744509108891,0.30852644,596.37,595.98,0.544]
[1744509109793,0.29206269,596.36,595.98,0.544]
[1744509110092,0.30852644,596.35,595.98,0.544]
[1744509111792,0.30852644,596.34,595.98,0.544]
[1744509112092,0.30852644,596.33,595.98,0.544]
[1744509112393,0.30849909,596.37,595.98,0.544]
[1744509112592,0.33535665,596.38,595.98,0.544]
[1744509112785,0.30850635,596.37,595.98,0.544]
[1744509112986,0.29205289,596.36,595.98,0.544]
[1744509113294,0.30850635,596.35,595.98,0.544]
[1744509114692,0.60058865,596.34,595.98,0.544]
[1744509114892,0.30850635,596.33,595.98,0.544]
[1744509117695,0.30850635,596.37,595.98,0.544]
[1744509117991,0.30850635,596.36,595.98,0.544]
[1744509118191,0.30850635,596.37,595.98,0.544]
[1744509118395,0.30850635,596.36,595.98,0.544]
[1744509118596,0.30850635,596.37,595.98,0.544]
[1744509118796,0.2920774,596.36,595.98,0.544]
[1744509118994,0.30850635,596.35,595.98,0.544]
[1744509120691,0.30850635,596.37,595.98,0.544]
[1744509121798,0.29209456,596.36,595.98,0.544]
[1744509121991,0.30850635,596.35,595.98,0.544]
[1744509122694,0.29209456,596.36,595.98,0.544]
[1744509122895,0.30858136,596.35,595.98,0.544]
[1744509123899,0.30858136,596.34,595.98,0.544]
[1744509124093,0.30858136,596.37,595.98,0.544]
[1744509124700,0.29209456,596.36,595.98,0.544]
[1744509124898,0.30858136,596.35,595.98,0.544]
[1744509125097,0.64395488,596.35,595.98,0.544]
[1744509125294,0.30858136,596.34,595.98,0.544]
[1744509125495,0.33538477,596.33,595.98,0.544]
[1744509125796,0.30858136,596.32,595.98,0.544]
[1744509126099,0.33539601,596.31,595.98,0.544]
[1744509126295,0.30858136,596.3,595.98,0.544]
[1744509127300,0.643983,596.3,595.98,0.544]
[1744509127501,0.33540164,596.3,595.98,0.544]
[1744509127701,0.60074754,596.29,595.98,0.544]
[1744509127897,0.30862233,596.28,595.98,0.544]
[1744509128201,0.30862233,596.28,595.96,2.159]
[1744509129103,0.29212521,596.29,595.96,2.159]
[1744509129306,0.30863591,596.28,595.96,2.159]
[1744509129806,0.29212766,596.27,595.96,2.159]
[1744509130104,0.30863591,596.26,595.96,2.159]
[1744509132505,0.30863591,596.26,595.96,1.499]
[1744509132703,0.30863591,596.29,595.96,1.499]
[1744509133307,0.30863591,596.28,595.96,1.499]
[1744509133608,0.30863591,596.27,595.96,1.499]
[1744509133807,0.29210927,596.27,595.96,1.499]
[1744509134209,0.30859042,596.26,595.96,1.499]
[1744509135409,0.30859042,596.26,595.96,0.954]
[1744509135609,0.29210927,596.27,595.96,0.954]
[1744509135811,0.30859125,596.26,595.96,0.954]
[1744509137107,0.29210927,596.27,595.96,0.954]
[1744509137307,0.30854657,596.26,595.96,0.954]
[1744509138911,0.30854657,596.25,595.96,0.954]
[1744509139212,0.30854848,596.24,595.96,0.954]
[1744509139411,0.30854848,596.32,595.96,0.954]
[1744509139614,0.30854848,596.31,595.96,0.479]
[1744509139810,0.29207863,596.23,595.96,0.479]
[1744509140015,0.30854848,596.22,595.91,0.518]
[1744509140211,0.30854848,596.32,595.91,0.518]
[1744509140408,1.27338355,596.33,595.91,0.518]
[1744509140612,0.30854692,596.32,595.91,0.518]
[1744509141515,0.6006329,596.31,595.91,0.518]
[1744509141715,0.30854692,596.3,595.91,0.518]
[1744509142014,0.29208598,596.31,595.91,0.518]
[1744509142214,0.30853759,596.3,595.91,0.518]
[1744509142615,0.30853759,596.3,595.91,1.117]
[1744509143711,0.29208598,596.31,595.91,1.117]
[1744509143916,0.30852339,596.3,595.91,1.117]
[1744509144614,0.30852339,596.29,595.91,1.117]
[1744509144816,0.29207985,596.29,595.91,1.117]
[1744509145017,0.30852339,596.28,595.91,1.117]
[1744509147820,0.30852339,596.27,595.91,1.117]
[1744509148014,0.30852339,596.42,595.91,1.117]
[1744509148215,0.30852339,596.41,595.91,1.117]
[1744509148420,0.30852339,596.42,595.91,1.117]
[1744509148720,0.29208966,596.4,595.91,1.117]
[1744509148914,0.30852339,596.39,595.91,1.117]
[1744509149118,0.30852339,596.39,595.91,1.851]
[1744509149322,0.30852339,596.38,595.91,1.851]
[1744509149520,0.30852339,596.39,595.91,1.851]
[1744509150022,0.30852339,596.38,595.91,1.851]
[1744509150217,0.30859289,596.37,595.91,1.851]
[1744509150423,0.30859289,596.36,595.91,1.851]
[1744509150617,0.30859289,596.35,595.91,1.851]
[1744509150822,0.30859289,596.34,595.91,1.851]
[1744509151017,0.30859289,596.33,595.91,1.851]
[1744509151220,0.30859289,596.39,595.91,1.851]
[1744509151418,0.30859289,596.38,595.91,1.851]
[1744509151625,0.30859289,596.39,595.91,1.851]
[1744509151818,0.29208966,596.4,595.91,1.851]
[1744509152119,0.30863826,596.39,595.91,1.851]
[1744509152319,1.27338355,596.34,595.91,1.851]
[1744509152520,0.30863826,596.33,595.91,1.851]
[1744509153127,0.30863826,596.32,595.91,1.851]
[1744509153426,1.27338355,596.34,595.91,1.851]
[1744509153725,0.3086892,596.33,595.91,1.851]
[1744509153920,1.27338355,596.34,595.91,1.851]
[1744509154222,0.30869455,596.33,595.91,1.851]
[1744509154423,0.30869455,596.32,595.91,1.851]
[1744509154622,1.27338355,596.15,595.91,1.851]
[1744509154825,0.30869455,596.14,595.91,1.851]
[1744509155030,1.27338355,596.15,595.91,1.333]